bitfinex/quotes_ETHUSD_20250827
["timestamp","ask_amount","ask_price","bid_price","bid_amount"]
[1756309985264,3.20032525,4663.9,4663.8,0.02]
[1756309985466,5.96448608,4663.9,4663.8,0.02]
[1756309985963,14.4025587,4665.3,4663.8,0.02]
[1756309985964,0.334835,4664.5,4663.8,0.02]
[1756309986169,0.20026431,4664.4,4663.8,0.02]
[1756309986372,3.20026431,4664.4,4663.8,0.02]
[1756309986530,0.334835,4664.5,4663.8,0.02]
[1756309986734,2.14394442,4664.3,4663.8,0.02]
[1756309987033,0.98258076,4664.2,4663.8,0.02]
[1756309987233,0.334835,4664.5,4663.8,0.02]
[1756309987463,0.20028825,4664.4,4663.8,0.02]
[1756309987857,2.34419129,4664.4,4663.8,0.02]
[1756309988055,0.20028825,4664.3,4663.8,0.021]
[1756309988230,3.334835,4664.5,4663.8,0.021]
[1756309988231,2.47869377,4664.5,4663.8,0.021]
[1756309988430,0.44819495,4664.4,4663.8,0.021]
[1756309988666,2.14391213,4664.4,4663.8,0.021]
[1756309988834,0.67050338,4664.5,4663.8,0.021]
[1756309989179,2.14389846,4664.4,4663.8,0.021]
[1756309989345,0.20031978,4664.3,4663.8,0.021]
[1756309990155,2.14399508,4664.2,4663.8,0.021]
[1756309990378,0.33566838,4664.5,4663.9,2.2513283]
[1756309990696,0.33566838,4664.5,4663.8,0.021]
[1756309990697,0.644828,4664.3,4663.8,0.021]
[1756309990868,3.20030027,4664.2,4663.8,0.021]
[1756309991078,5.1441283,4663.9,4663.8,0.021]
[1756309991384,6.57127979,4663.9,4663.8,0.021]
[1756309991679,8.42055644,4663.9,4663.8,0.021]
[1756309991889,8.75628495,4663.9,4663.8,0.021]
[1756309992243,6.61215665,4663.9,4663.8,0.021]
[1756309992454,10.91185681,4663.9,4663.8,0.021]
[1756309992650,11.11204831,4663.9,4663.8,0.021]
[1756309992854,10.91185681,4663.9,4663.8,0.021]
[1756309993450,8.76772851,4663.9,4663.8,0.021]
[1756309993857,4.98472851,4663.9,4663.8,0.021]
[1756309994055,9.4816103,4663.9,4663.8,0.021]
[1756309994288,5.6976103,4663.9,4663.8,0.021]
[1756309994486,1.649,4663.9,4663.8,0.021]
[1756309994659,3.0,4664.4,4664.0,2.14404433]
[1756309994865,1.649,4664.7,4664.1,2.14402771]
[1756309995191,0.644809,4664.4,4664.1,2.14402771]
[1756309995376,5.432,4664.7,4664.1,0.1072]
[1756309995582,3.0,4664.6,4664.0,2.14407438]
[1756309995776,3.0,4664.6,4663.8,0.021]
[1756309995777,0.64479,4664.6,4663.8,0.021]
[1756309995965,0.64479,4664.6,4664.0,2.14404491]
[1756309996369,0.64479,4664.6,4663.8,2.16516366]
[1756309996603,0.64479,4664.6,4663.9,2.1440997]
[1756309996906,6.91096008,4664.6,4663.8,2.16513911]
[1756309997068,4.76714137,4664.6,4663.9,2.14412323]
[1756309997257,1.76714137,4664.6,4663.9,2.14412323]
[1756309997557,3.785,4664.5,4663.9,2.14412323]
[1756309997858,1.76714137,4664.6,4663.8,0.021]
[1756309997859,3.0,4664.3,4663.8,0.021]
[1756309998086,3.786,4664.2,4663.8,0.021]
[1756309998603,3.786,4664.1,4663.8,0.021]
[1756309999691,0.1072,4664.0,4663.8,0.021]
[1756310000317,0.1072,4664.0,4663.9,2.1441283]
[1756310000457,0.1072,4664.0,4663.9,2.36064113]
[1756310000861,0.3356819,4664.2,4664.1,2.14403636]
[1756310002175,0.3356819,4664.2,4663.9,2.46784113]
[1756310002176,0.3356819,4664.2,4663.9,0.1072]
[1756310002362,0.3356819,4664.2,4663.8,0.021]
[1756310002566,3.783,4664.1,4663.8,0.021]
[1756310002780,3.0,4664.0,4663.8,0.021]
[1756310002978,5.14409106,4664.0,4663.8,0.021]
[1756310003210,2.1441283,4663.9,4663.8,0.021]
[1756310003576,8.9271283,4663.9,4663.8,0.021]
[1756310003776,6.783,4663.9,4663.8,0.021]
[1756310003982,10.56949922,4663.9,4663.8,0.021]
[1756310005302,8.42537092,4663.9,4663.8,0.021]
[1756310005626,10.56949922,4663.9,4663.8,0.021]
[1756310007409,10.77006562,4663.9,4663.8,0.021]
[1756310008095,10.77006575,4663.9,4663.8,0.021]
[1756310008494,10.76926575,4663.9,4663.8,0.021]
[1756310009094,11.10499203,4663.9,4663.8,0.021]
[1756310009692,18.13499203,4663.9,4663.8,0.021]
[1756310011409,17.9344255,4663.9,4663.8,0.021]
[1756310011611,14.98343421,4663.9,4663.8,0.021]
[1756310011922,14.33852721,4663.9,4663.8,0.021]
[1756310012333,16.48267582,4663.9,4663.8,0.021]
[1756310013824,14.33854752,4663.9,4663.8,0.021]
[1756310014118,16.48267582,4663.9,4663.8,0.021]
[1756310014333,16.20981308,4663.9,4663.8,0.021]
[1756310014530,18.35394138,4663.9,4663.8,0.021]
[1756310015419,16.20981308,4663.9,4663.8,0.021]
[1756310016025,14.33854752,4663.9,4663.8,0.021]
[1756310018125,16.48267582,4663.9,4663.8,0.021]
[1756310018458,16.4827503,4663.9,4663.8,0.021]
[1756310018764,14.338622,4663.9,4663.8,0.021]
[1756310020480,16.4827503,4663.9,4663.8,0.021]
[1756310020624,18.35402783,4663.9,4663.8,0.021]
[1756310021055,18.10429855,4663.9,4663.8,0.021]
[1756310021253,18.09029855,4663.9,4663.8,0.021]
[1756310021454,14.07489272,4663.9,4663.8,0.021]
[1756310021733,13.788,4663.9,4663.8,0.021]
[1756310021931,13.98889882,4663.9,4663.8,0.021]
[1756310022960,13.98989882,4663.9,4663.8,0.021]
[1756310024260,16.46974356,4663.9,4663.8,0.021]
[1756310024434,15.97258962,4663.9,4663.8,0.021]
[1756310024630,14.32561526,4663.9,4663.8,0.021]
[1756310025243,16.13602712,4663.9,4663.8,0.021]
[1756310026065,12.37702712,4663.9,4663.8,0.021]
[1756310026362,16.13502712,4663.9,4663.8,0.021]
[1756310028865,10.23289882,4663.9,4663.8,0.021]
[1756310029069,13.99189882,4663.9,4663.8,0.021]
[1756310029670,10.99189882,4663.9,4663.8,0.021]
[1756310030044,13.99189882,4663.9,4663.8,0.021]
[1756310030440,7.23289882,4663.9,4663.8,2.16517427]
[1756310030739,7.032,4663.9,4663.8,2.59611597]
[1756310031369,7.032,4663.9,4663.8,2.16517427]
[1756310032073,7.032,4663.9,4663.8,0.021]
[1756310032775,7.032,4663.9,4663.8,2.16517427]
[1756310033077,7.0312,4663.9,4663.8,2.16517427]
[1756310034440,7.0312,4663.9,4663.8,0.021]
[1756310034639,10.7892,4663.9,4663.8,0.021]
[1756310037048,7.0312,4663.9,4663.8,0.021]
[1756310037262,10.99013292,4663.9,4663.8,0.021]
[1756310038461,7.0312,4663.9,4663.8,0.021]
[1756310038661,10.7892,4663.9,4663.8,0.021]
[1756310038860,10.9901306,4663.9,4663.8,0.021]
[1756310039046,12.30354397,4663.9,4663.8,0.021]
[1756310039662,17.44767227,4663.9,4663.8,0.021]
[1756310040183,14.02540094,4663.9,4663.8,0.021]
[1756310040388,14.32585927,4663.9,4663.8,0.021]
[1756310040751,10.56785927,4663.9,4663.8,0.021]
[1756310040958,12.71198757,4663.9,4663.8,0.021]
[1756310041157,16.46998757,4663.9,4663.8,0.021]
[1756310041679,16.47000702,4663.9,4663.8,0.021]
[1756310041882,18.33141143,4663.9,4663.8,0.021]
[1756310042694,18.33141143,4663.9,4663.3,0.001]
[1756310042695,0.66,4663.7,4663.3,0.001]
[1756310042902,0.66,4663.7,4661.8,0.1272]
[1756310042903,0.66,4662.8,4661.8,0.1272]
[1756310043200,2.14527824,4661.4,4660.6,0.11220083]
[1756310043354,4.84995005,4661.4,4659.8,0.021]
[1756310043554,5.29305107,4661.4,4659.8,0.1282]
[1756310043862,2.09210102,4661.4,4660.3,0.1082]
[1756310044080,5.85010102,4661.4,4661.0,2.14542101]
[1756310044280,0.44310102,4661.4,4661.3,2.14632426]
[1756310044887,0.1072,4661.4,4661.3,2.14632426]
[1756310045305,0.1072,4661.4,4661.3,0.001]
[1756310045459,0.1072,4661.4,4661.3,2.14632426]
[1756310046164,0.1072,4661.4,4661.3,0.001]
[1756310046658,0.1072,4661.4,4661.3,2.14632426]
[1756310048290,3.0,4662.1,4661.5,2.14523222]
[1756310048500,0.1072,4661.7,4661.5,2.14523222]
[1756310048712,0.1072,4661.7,4661.3,2.14630323]
[1756310048855,0.1072,4661.7,4661.3,0.001]
[1756310049480,0.1072,4661.4,4661.3,0.001]
[1756310049684,9.01047824,4661.4,4661.3,0.001]
[1756310049868,7.98076682,4661.4,4661.3,0.001]
[1756310050496,10.46193337,4661.4,4661.3,0.001]
[1756310051118,8.31665513,4661.4,4661.3,0.001]
[1756310051319,1.55865513,4661.4,4661.3,0.001]
[1756310051615,4.20108831,4661.4,4661.3,0.001]
[1756310052388,0.33588831,4661.4,4661.3,2.14632426]
[1756310052824,0.33588831,4661.4,4661.3,0.001]
[1756310053282,0.33588831,4661.4,4661.3,2.14632426]
[1756310054023,3.758,4661.8,4661.6,2.14518118]
[1756310054220,4.09383682,4662.0,4661.7,2.14511407]
[1756310054514,4.09383682,4662.0,4661.8,2.14508594]
[1756310054730,0.33583682,4662.0,4661.8,2.14508594]
[1756310054920,0.33583682,4662.0,4661.7,2.14513594]
[1756310055722,3.758,4662.1,4661.3,0.001]
[1756310055920,0.5407,4662.0,4661.3,0.001]
[1756310056224,3.758,4662.1,4661.8,2.14505894]
[1756310056420,3.758,4662.1,4661.3,0.001]
[1756310056806,3.758,4662.1,4662.0,2.14500214]
[1756310057009,3.758,4662.1,4661.3,0.001]
[1756310057010,10.7872,4662.1,4661.3,0.001]
[1756310057320,1.29320861,4662.0,4661.5,2.14522901]
[1756310057521,10.7872,4662.1,4661.3,0.001]
[1756310057522,10.7864,4662.1,4661.7,2.14510259]
[1756310057730,10.7864,4662.1,4661.5,2.14519016]
[1756310058021,10.7864,4662.1,4661.3,2.14631113]
[1756310058022,10.7864,4662.1,4661.3,0.001]
[1756310058393,10.7864,4662.1,4661.6,2.14518453]
[1756310058795,10.7864,4662.1,4661.7,2.14513862]
[1756310059224,10.7864,4662.1,4661.6,2.14518599]
[1756310059626,10.7864,4662.1,4661.3,0.001]
[1756310059792,3.33581728,4662.0,4661.3,0.001]
[1756310059994,3.0,4661.8,4661.3,0.001]
[1756310060235,3.0,4661.6,4661.3,0.001]
[1756310060395,2.14527824,4661.4,4661.3,0.001]
[1756310060733,8.90327824,4661.4,4661.3,0.001]
[1756310060928,4.37483268,4661.4,4661.3,0.001]
[1756310061089,8.46872345,4661.4,4661.3,0.001]
[1756310061388,4.09389077,4661.4,4661.3,0.001]
[1756310062529,0.44309077,4661.4,4661.3,0.001]
[1756310062899,0.44309077,4661.4,4661.3,2.14632426]
[1756310063303,0.44309077,4661.4,4661.3,0.001]
[1756310065341,0.1072,4661.4,4661.3,2.14632426]
[1756310065541,6.34191824,4661.4,4661.3,0.001]
[1756310065728,10.30023522,4661.4,4661.3,0.001]
[1756310065939,4.39695698,4661.4,4661.3,0.001]
[1756310066140,3.1072,4661.4,4661.3,0.001]
[1756310066948,3.8652,4661.4,4661.3,2.14632426]
[1756310067120,0.1072,4661.4,4661.3,2.14632426]
[1756310067644,0.1072,4661.4,4661.3,0.001]
[1756310068417,2.25247824,4661.4,4661.3,0.001]
[1756310068615,3.05423298,4661.4,4661.3,0.001]
[1756310068815,2.85352606,4661.4,4661.3,0.001]
[1756310069216,3.05443136,4661.4,4661.3,0.001]
[1756310069419,6.05443136,4661.4,4661.3,0.001]
[1756310069621,9.81243136,4661.4,4661.3,0.001]
[1756310070449,6.05443136,4661.4,4661.3,0.001]
[1756310070748,9.81243136,4661.4,4661.3,0.001]
[1756310071256,10.14834053,4661.4,4661.3,0.001]
[1756310071958,6.3903129,4661.4,4661.3,0.001]
[1756310072123,10.1483129,4661.4,4661.3,0.001]
[1756310072435,10.14843434,4661.4,4661.3,0.001]
[1756310072645,9.94743523,4661.4,4661.3,0.001]
[1756310072855,10.14837283,4661.4,4661.3,0.001]
[1756310073536,17.17757283,4661.4,4661.3,0.001]
[1756310073770,7.67324677,4661.4,4661.3,0.001]
[1756310073959,0.33590917,4661.4,4661.3,2.14632426]
[1756310074160,2.986,4662.3,4661.4,2.14527824]
[1756310074360,2.986,4662.3,4662.1,2.14492779]
[1756310074763,3.79435208,4663.5,4661.3,0.001]
[1756310074962,4.33820644,4663.4,4662.4,2.14477654]
[1756310075135,3.20077123,4663.3,4662.4,2.14477654]
[1756310075334,0.20077123,4663.2,4662.5,2.14476327]
[1756310075632,3.0,4663.0,4661.5,2.14523222]
[1756310075842,0.20077123,4662.9,4661.6,2.1451862]
[1756310076044,3.37943521,4663.4,4662.5,2.14476809]
[1756310076045,3.0,4662.7,4662.5,2.14476809]
[1756310076370,3.758,4663.0,4662.9,2.14458813]
[1756310076566,6.758,4663.0,4662.9,2.14458813]
[1756310076767,3.758,4663.0,4662.8,2.14461487]
[1756310077069,3.758,4663.0,4661.6,1.65]
[1756310077378,3.758,4663.0,4661.7,2.68589553]
[1756310077576,3.758,4663.0,4662.5,2.14472729]
[1756310077735,0.33575556,4662.8,4662.3,2.14482452]
[1756310077943,3.758,4662.7,4662.5,2.14472731]
[1756310078274,3.758,4662.7,4661.6,1.65]
[1756310078476,3.758,4662.7,4661.6,2.40541885]
[1756310078652,3.758,4662.7,4662.4,2.14480336]
[1756310079046,3.758,4662.7,4661.6,1.65]
[1756310079451,3.758,4662.7,4662.3,2.14481867]
[1756310080052,3.758,4662.7,4662.4,2.14480199]
[1756310080253,4.16737556,4662.7,4662.1,2.1449404]
[1756310080469,4.16737556,4662.7,4661.7,3.0]
[1756310080765,3.758,4662.7,4662.5,2.14476241]
[1756310081984,3.7572,4662.7,4661.6,1.65]
[1756310082170,0.33575556,4662.8,4661.7,2.14514018]
[1756310082488,3.757,4662.6,4662.4,2.14479182]
[1756310082649,3.757,4662.6,4662.1,2.14491447]
[1756310082985,3.757,4662.6,4661.8,2.14505251]
[1756310082986,4.16627556,4662.6,4661.8,2.14505251]
[1756310083186,4.16627556,4662.6,4661.9,2.1450426]
[1756310083394,5.81627556,4662.6,4661.3,0.001]
[1756310083890,5.81627556,4662.6,4661.8,2.14508099]
[1756310084094,0.1072,4661.8,4661.7,2.14513416]
[1756310084255,0.1072,4661.8,4661.3,0.001]
[1756310084450,0.1072,4661.8,4661.3,2.14630485]
[1756310084655,0.1072,4661.8,4661.7,2.14514018]
[1756310085053,0.1072,4661.8,4661.5,2.14519549]
[1756310085259,0.1072,4661.8,4661.7,2.14514018]
[1756310085567,0.1072,4661.8,4661.6,2.14517514]
[1756310085966,0.1072,4661.8,4661.7,2.14514018]
[1756310086686,0.1072,4661.8,4661.6,2.14517746]
[1756310086873,0.1072,4661.8,4661.5,2.14521974]
[1756310087186,0.1072,4661.8,4661.6,2.14514605]
[1756310087554,0.1072,4661.8,4661.7,2.14514018]
[1756310087755,0.1072,4661.8,4661.3,0.001]
[1756310088463,0.1072,4661.8,4661.5,2.14519708]
[1756310088794,3.757,4662.0,4661.4,2.14527685]
[1756310088960,4.34719103,4662.0,4661.3,0.001]
[1756310089161,0.1072,4661.5,4661.4,2.14527824]
[1756310090269,7.0292,4662.4,4661.3,0.001]
[1756310090586,0.1072,4661.7,4661.6,2.1451862]
[1756310092087,0.44300841,4662.2,4661.5,0.1072]
[1756310092292,0.44300841,4662.2,4662.1,2.14495613]
[1756310092902,0.44300841,4662.2,4661.5,0.1072]
[1756310093104,0.67834797,4662.2,4661.3,0.001]
[1756310093290,0.1072,4661.8,4661.3,0.001]
[1756310093477,0.1072,4661.4,4661.3,2.14632059]
[1756310094771,0.1072,4661.4,4661.3,0.001]
[1756310095282,7.1364,4661.4,4661.3,0.001]
[1756310095906,12.28167824,4661.4,4661.3,0.001]
[1756310096210,14.4654723,4661.4,4661.3,0.001]
[1756310097213,18.02096519,4661.4,4661.3,0.001]
[1756310097503,14.26496519,4661.4,4661.3,0.001]
[1756310097702,18.2214363,4661.4,4661.3,0.001]
[1756310098827,14.4654363,4661.4,4661.3,0.001]
[1756310099103,16.07615806,4661.4,4661.3,0.001]
[1756310099281,18.2214363,4661.4,4661.3,0.001]
[1756310099480,0.64356204,4661.4,4661.3,0.001]
[1756310099804,0.44309093,4661.4,4661.3,2.14632426]
[1756310100210,0.44309093,4661.4,4661.3,0.001]
[1756310100414,0.44309093,4661.4,4661.3,2.14632426]
[1756310100615,0.44309093,4661.4,4661.3,0.001]
[1756310100808,0.44309093,4661.4,4661.3,2.14632426]
[1756310101009,0.44309093,4661.4,4661.3,0.001]
[1756310103682,4.19909093,4661.4,4661.3,2.14632426]
[1756310104593,4.19909093,4661.4,4661.3,0.001]
[1756310105188,3.8632,4661.4,4661.3,0.001]
[1756310106628,3.8624,4661.4,4661.3,0.001]
[1756310107121,7.0292,4662.1,4661.4,2.14527824]
[1756310107327,7.0292,4662.1,4661.3,0.21583574]
[1756310107328,0.1072,4661.7,4661.5,2.14518697]
[1756310107619,0.1072,4661.7,4661.3,0.21583574]
[1756310107806,0.1072,4661.7,4661.4,2.14527638]
[1756310108126,0.1072,4661.7,4661.5,2.14522492]
[1756310108887,0.1072,4661.7,4661.3,0.21583574]
[1756310109116,0.1072,4661.7,4661.3,0.001]
[1756310109311,0.33581978,4662.0,4661.9,2.14504815]
[1756310109924,0.33581978,4662.0,4661.3,0.001]
[1756310110128,0.33581978,4662.0,4661.9,2.14504815]
[1756310110336,0.33581978,4662.0,4661.9,2.25224815]
[1756310110714,0.33581978,4662.0,4661.9,2.69198438]
[1756310113334,0.002,4662.7,4662.0,0.66]
[1756310113537,0.002,4662.7,4662.6,2.25192611]
[1756310114837,0.002,4662.7,4662.6,2.91192611]
[1756310115040,0.002,4662.7,4662.6,3.79299807]
[1756310116036,0.002,4662.7,4662.6,4.58804533]
[1756310116236,0.002,4662.7,4662.6,4.56659807]
[1756310116438,1e-08,4662.8,4662.7,5.80468012]
[1756310116620,1e-08,4662.8,4662.7,6.27478012]
[1756310116935,1e-08,4662.8,4662.7,8.13928729]
[1756310118038,1e-08,4662.8,4662.7,11.89228729]
[1756310119230,1e-08,4662.8,4662.7,8.13928729]
[1756310119429,1e-08,4662.8,4662.7,11.89228729]
[1756310119739,1e-08,4662.8,4662.7,7.45868729]
[1756310119939,1e-08,4662.8,4662.7,5.89768012]
[1756310120846,1e-08,4662.8,4662.7,6.20118012]
[1756310121008,1e-08,4662.8,4662.7,2.44818012]
[1756310121352,0.31340001,4662.8,4662.7,5.89668012]
[1756310121536,1e-08,4662.8,4662.7,2.14468012]
[1756310121842,1e-08,4662.8,4662.7,2.44818012]
[1756310122042,1e-08,4662.8,4662.7,6.20018012]
[1756310122341,1e-08,4662.8,4662.7,7.18730374]
[1756310122640,1e-08,4662.8,4662.7,7.29450374]
[1756310122844,1e-08,4662.8,4662.7,6.82440374]
[1756310123138,0.31340001,4662.8,4662.7,5.89668012]
[1756310123849,1e-08,4662.8,4662.7,5.89668012]
[1756310124440,1e-08,4662.8,4662.7,2.14468012]
[1756310125348,0.31340001,4662.8,4662.7,2.14468012]
[1756310126143,0.31340001,4662.8,4662.6,2.14471477]
[1756310126445,0.31340001,4662.8,4662.7,2.14468012]
[1756310126755,0.10720001,4662.8,4662.7,2.44818012]
[1756310127336,0.10720001,4662.8,4662.7,2.91828012]
[1756310127540,1e-08,4662.8,4662.7,3.79968356]
[1756310127740,1e-08,4662.8,4662.7,7.55068356]
[1756310128352,1e-08,4662.8,4662.7,7.08058356]
[1756310128560,1e-08,4662.8,4662.7,6.77708356]
[1756310128879,1e-08,4662.8,4662.7,2.14468012]
[1756310128880,0.31340001,4662.8,4662.7,2.14468012]
[1756310129066,0.31340001,4662.8,4662.7,5.89568012]
[1756310129234,1e-08,4662.8,4662.7,6.30638012]
[1756310129428,1e-08,4662.8,4662.7,2.55538012]
[1756310129841,1e-08,4662.8,4662.7,6.00288012]
[1756310130471,1e-08,4662.8,4662.7,6.30638012]
[1756310130868,0.31340001,4662.8,4662.7,6.00288012]
[1756310131074,0.002,4663.2,4663.1,2.14449615]
[1756310131613,0.8941,4663.2,4662.9,3.75]
[1756310131960,0.8941,4663.2,4663.0,2.14450637]
[1756310132265,0.8941,4663.2,4662.9,3.75]
[1756310132466,0.4226,4663.2,4662.9,3.75]
[1756310132709,0.4395,4663.1,4662.8,2.14460421]
[1756310132891,0.4395,4663.1,4662.6,0.001]
[1756310132892,0.3046,4662.9,4662.6,0.001]
[1756310133091,0.1072,4662.7,4662.6,0.001]
[1756310133601,0.4118,4662.7,4662.6,0.001]
[1756310134097,0.1072,4662.7,4662.6,2.43860586]
[1756310134466,7.0292,4663.1,4662.9,2.14458091]
[1756310134800,0.64034446,4663.0,4662.9,2.14458091]
[1756310135097,0.74754446,4663.0,4662.9,2.14458091]
[1756310135298,0.4118,4663.0,4662.8,2.144623]
[1756310135504,0.4118,4663.0,4662.9,2.14458813]
[1756310135965,0.1072,4663.0,4662.9,2.43748813]
[1756310136168,7.0292,4663.1,4662.9,2.43748813]
[1756310136169,7.0292,4663.1,4663.0,2.14454214]
[1756310136472,7.0292,4663.1,4663.0,5.89454214]
[1756310136777,7.0292,4663.1,4663.0,6.61674214]
[1756310136986,0.1072,4663.7,4663.0,6.61674214]
[1756310136987,0.1072,4663.7,4663.1,2.14449615]
[1756310137200,0.1072,4663.7,4663.1,2.57379615]
[1756310137396,0.1072,4663.7,4663.1,3.83708609]
[1756310138369,0.1072,4663.7,4663.1,4.51853105]
[1756310138568,0.02,4663.8,4663.1,4.51853105]
[1756310138569,0.02,4663.8,4663.1,4.60428609]
[1756310139208,0.02,4663.8,4663.1,3.94428609]
[1756310139364,0.02,4663.8,4663.1,3.51498609]
[1756310139570,0.02,4663.8,4663.1,7.69328609]
[1756310139970,0.35568819,4663.8,4663.1,7.69328609]
[1756310142308,0.35568819,4663.8,4663.1,3.94428609]
[1756310142476,0.35568819,4663.8,4663.1,7.69228609]
[1756310142793,0.35568819,4663.8,4663.1,7.26298609]
[1756310143605,0.35568819,4663.8,4663.1,3.94428609]
[1756310143809,0.35568819,4663.8,4663.1,7.69228609]
[1756310145181,0.02,4663.8,4663.1,6.97008609]
[1756310145379,0.02,4663.8,4663.1,7.26298609]
[1756310145576,0.02,4663.8,4663.1,8.35228609]
[1756310146677,1e-08,4663.3,4663.1,8.35228609]
[1756310146876,1e-08,4663.3,4663.2,7.44833298]
[1756310147316,1e-08,4663.3,4663.2,7.74123298]
[1756310148314,1e-08,4663.3,4663.2,11.48823298]
[1756310148482,1e-08,4663.3,4663.2,11.59543298]
[1756310149695,1e-08,4663.3,4663.2,7.84843298]
[1756310149898,1e-08,4663.3,4663.2,11.59543298]
[1756310150191,1e-08,4663.3,4663.2,7.84843298]
[1756310150519,1e-08,4663.3,4663.2,11.59543298]
[1756310151813,1e-08,4663.3,4663.2,11.59443298]
[1756310152432,1e-08,4663.3,4663.2,7.84843298]
[1756310152587,1e-08,4663.3,4663.2,11.59443298]
[1756310152788,1e-08,4663.3,4663.2,7.84843298]
[1756310153088,1e-08,4663.3,4663.2,11.59443298]
[1756310154429,1e-08,4663.3,4663.2,11.16513298]
[1756310154591,1e-08,4663.3,4663.2,11.59443298]
[1756310155424,0.02120001,4663.8,4663.7,2.80422025]
[1756310155629,0.02120001,4663.8,4663.7,7.04407089]
[1756310155942,0.02120001,4663.8,4663.7,7.44417089]
[1756310156947,0.02120001,4663.8,4663.7,7.87347089]
[1756310157743,0.02120001,4663.8,4663.7,7.44417089]
[1756310158140,0.02120001,4663.8,4663.7,7.15127089]
[1756310158733,0.02120001,4663.8,4663.7,7.44417089]
[1756310159379,0.32580001,4663.8,4663.7,2.91142025]
[1756310159562,0.76530001,4663.8,4663.7,2.14422025]
[1756310159884,0.76530001,4663.8,4663.1,0.001]
[1756310159885,1.31200001,4663.8,4663.2,2.14444513]
[1756310160085,0.1072,4663.3,4663.2,2.14440834]
[1756310160382,0.7441,4663.3,4663.1,3.746]
[1756310160681,0.4395,4663.2,4663.1,5.88948766]
[1756310160857,0.8513,4663.2,4663.1,0.001]
[1756310161673,0.4118,4663.2,4663.1,2.14549615]
[1756310162208,0.8646,4663.2,4663.1,2.14549615]
[1756310162862,0.02120001,4663.8,4663.1,2.14549615]
[1756310162863,0.1072,4663.6,4663.2,2.14445016]
[1756310163053,0.44290733,4663.6,4663.5,2.14431221]
[1756310163245,0.44290733,4663.6,4663.5,5.88831221]
[1756310163449,1.20140733,4663.6,4663.5,5.88831221]
[1756310164062,1.09420733,4663.6,4663.5,5.88831221]
[1756310165288,0.7585,4663.6,4663.5,5.88831221]
[1756310166380,0.3057,4663.6,4663.5,5.88831221]
[1756310167298,0.02120001,4663.8,4663.7,2.14422025]
[1756310167595,0.02120001,4663.8,4663.7,5.88822025]
[1756310167767,0.32690001,4663.8,4663.7,5.88822025]
[1756310168282,0.02120001,4663.8,4663.7,5.88822025]
[1756310168463,0.02120001,4663.8,4663.7,7.0837735]
[1756310168875,0.02120001,4663.8,4663.7,8.2117735]
[1756310169472,0.02120001,4663.8,4663.7,9.8607735]
[1756310170302,1e-08,4663.8,4663.7,9.8607735]
[1756310170466,1e-08,4663.8,4663.7,12.8607735]
[1756310170870,1e-08,4663.8,4663.7,12.8597735]
[1756310173782,1e-08,4663.8,4663.7,9.1167735]
[1756310173993,1e-08,4663.8,4663.7,12.8587735]
[1756310178316,1e-08,4663.8,4663.7,8.6487735]
[1756310178522,1e-08,4663.8,4663.7,12.3897735]
[1756310178720,1e-08,4663.8,4663.7,12.8577735]
[1756310179931,0.01920001,4664.8,4664.7,2.14376058]
[1756310180125,0.01920001,4664.8,4664.7,5.88476058]
[1756310180286,0.77770001,4664.8,4664.7,5.99196058]
[1756310180622,0.77770001,4664.8,4664.7,5.88476058]
[1756310181390,0.77770001,4664.8,4664.7,3.74]
[1756310181601,0.77770001,4664.8,4664.5,3.74]
[1756310181808,0.4528,4664.7,4664.5,3.74]
[1756310182027,0.7585,4664.6,4664.5,3.74]
[1756310182424,0.7585,4664.6,4664.5,5.88381797]
[1756310182627,0.7585,4664.6,4664.2,0.1072]
[1756310183326,0.56,4664.5,4664.1,3.74]
[1756310183528,0.1072,4664.5,4664.1,3.74]
[1756310183832,0.4129,4664.2,4664.0,3.74]
[1756310184000,0.4129,4664.2,4664.1,3.74]
[1756310184597,0.8657,4664.2,4664.1,3.74]
[1756310184796,3.31066051,4664.2,4663.7,3.74]
[1756310184997,3.31066051,4664.2,4663.4,3.74]
[1756310184998,0.1072,4663.8,4663.4,3.74]
[1756310185251,0.1072,4663.8,4663.2,2.14441498]
[1756310185429,0.3057,4663.3,4663.1,3.741]
[1756310185628,0.4528,4663.2,4663.1,3.741]
[1756310185819,0.7585,4663.2,4663.1,5.88549615]
[1756310186023,0.8657,4663.2,4663.1,5.88549615]
[1756310187916,0.8657,4663.2,4663.1,2.14549615]
[1756310188511,0.8657,4663.2,4663.1,0.001]
[1756310188821,0.8657,4663.2,4663.1,2.14549615]
[1756310188998,0.4129,4663.2,4663.1,2.14549615]
[1756310189204,0.3057,4663.2,4663.1,2.14549615]
[1756310189938,0.3057,4663.2,4663.1,5.88549615]
[1756310190118,0.33571045,4663.7,4663.1,4.0261]
[1756310190447,0.44291045,4663.7,4663.6,2.14426623]
[1756310190616,0.33571045,4663.7,4663.6,5.88326623]
[1756310190818,0.64141045,4663.7,4663.6,3.739]
[1756310191113,0.64141045,4663.7,4663.6,5.88326623]
[1756310191601,0.33571045,4663.7,4663.6,6.16836623]
[1756310191801,0.33571045,4663.7,4663.6,5.88326623]
[1756310192029,0.1072,4663.9,4663.8,2.14417427]
[1756310192229,0.1072,4663.9,4663.8,5.88317427]
[1756310192432,0.3983,4663.9,4663.8,5.88317427]
[1756310192803,0.3356747,4664.3,4664.2,2.14399039]
[1756310193147,0.1072,4664.6,4664.5,2.1438525]
[1756310193328,0.3983,4664.6,4664.5,5.8828525]
[1756310193527,0.01920001,4664.8,4664.7,2.14376058]
[1756310193732,0.01920001,4664.8,4664.7,5.88276058]
[1756310193914,0.01920001,4664.8,4664.7,7.07928189]
[1756310194116,0.01920001,4664.8,4664.7,7.51388189]
[1756310194322,0.31030001,4664.8,4664.7,5.88276058]
[1756310194517,0.31030001,4664.8,4664.5,0.1072]
[1756310194725,0.31030001,4664.8,4664.7,2.14376058]